Workbook

Sheet Sheet1
E1: Reports | F1: Total Annual | G1: Est. No. of | H1: Est. Total | J1: Total
A2: Section of | C2: Form No. | D2: Est. No. of | E2: Filed | F2: Responses | G2: Man hours | H2: Man-hours | I2: Wage | J2: Cost
A3: Regulation | B3: Title | C3: (if Any) | D3: Respondents | E3: Annually | F3: (D) x (E) | G3: Per Response | H3: (F) x (G) | I3: Class | J3: (H) x (I)
A4: (A) | B4: (B) | C4: (C) | D4: (D) | E4: (E) | F4: (F) | G4: (G) | H4: (H) | I4: (I) | J4: (J)
B5: REPORTING REQUIREMENTS - NO FORMS
A6: 1956.130(b)(4) | B6: Disappeared Debtor
A7: RBS | D7: 0 | E7: 0 | F7: =SUM(D7*E7) -> 0 | G7: 0.0 | H7: =SUM(F7*G7) -> 0.0 | I7: $90 | J7: =SUM(H7*I7) -> $0
A8: CF | D8: 0 | E8: 0 | F8: =SUM(D8*E8) -> 0 | G8: 0.0 | H8: =SUM(F8*G8) -> 0.0 | I8: $90 | J8: =SUM(H8*I8) -> $0
A9: 1956.138(b) | B9: Requesting Additional Information
A10: RBS | D10: 13 | E10: 2 | F10: =SUM(D10*E10) -> 26 | G10: 1.0 | H10: =SUM(F10*G10) -> 26.0 | I10: $90 | J10: =SUM(H10*I10) -> $2,340
A11: CF | D11: 9 | E11: 2 | F11: =SUM(D11*E11) -> 18 | G11: 1.0 | H11: =SUM(F11*G11) -> 18.0 | I11: $90 | J11: =SUM(H11*I11) -> $1,620
A12: 1956.142 | B12: Delinquent adjustment agreements
A13: RBS | D13: 16 | E13: 1 | F13: =SUM(D13*E13) -> 16 | G13: 2.0 | H13: =SUM(F13*G13) -> 32.0 | I13: $90 | J13: =SUM(H13*I13) -> $2,880
A14: CF | D14: 0 | E14: 1 | F14: 0 | G14: 2.0 | H14: =SUM(F14*G14) -> 0.0 | I14: $90 | J14: =SUM(H14*I14) -> $0
A15: 1956.143(b)(6) | B15: Request for debt restructuring
A16: RBS | D16: 7 | E16: 1 | F16: =SUM(D16*E16) -> 7 | G16: 40.0 | H16: =SUM(F16*G16) -> 280.0 | I16: $154 | J16: =SUM(H16*I16) -> $43,120
A17: CF | D17: 0 | E17: 1 | F17: =SUM(D17*E17) -> 0 | G17: 40.0 | H17: =SUM(F17*G17) -> 0.0 | I17: $154 | J17: =SUM(H17*I17) -> $0
A18: 1956.143(c)(1) | B18: Operations Review
A19: RBS | D19: 0 | E19: 1 | F19: =SUM(D19*E19) -> 0 | G19: 40.0 | H19: =SUM(F19*G19) -> 0.0 | I19: $154 | J19: =SUM(H19*I19) -> $0
A20: CF | D20: 0 | E20: 1 | F20: =SUM(D20*E20) -> 0 | G20: 40.0 | H20: =SUM(F20*G20) -> 0.0 | I20: $154 | J20: =SUM(H20*I20) -> $0
A21: 1956.143(c)(2) | B21: Appraisal
A22: RBS | D22: 13 | E22: 1 | F22: =SUM(D22*E22) -> 13 | G22: 40.0 | H22: =SUM(F22*G22) -> 520.0 | J22: =SUM(H22*I22) -> $0
A23: CF | D23: 0 | E23: 1 | F23: =SUM(D23*E23) -> 0 | G23: 40.0 | H23: =SUM(F23*G23) -> 0.0 | I23: $154 | J23: =SUM(H23*I23) -> $0
A24: 1956.143(c)(3)(ii) | B24: Meetings with Borrower
A25: RBS | D25: 16 | E25: 2 | F25: =SUM(D25*E25) -> 32 | G25: 2.0 | H25: =SUM(F25*G25) -> 64.0 | I25: $154 | J25: =SUM(H25*I25) -> $9,856
A26: CF | D26: 9 | E26: 2 | F26: =SUM(D26*E26) -> 18 | G26: 2.0 | H26: =SUM(F26*G26) -> 36.0 | I26: $154 | J26: =SUM(H26*I26) -> $5,544
A27: 1956.143(c)(3)(iii)(C) | B27: Appeal
A28: RBS | D28: 0 | E28: 1 | F28: =SUM(D28*E28) -> 0 | G28: 15.0 | H28: =SUM(F28*G28) -> 0.0 | I28: $154 | J28: =SUM(H28*I28) -> $0
A29: CF | D29: 0 | E29: 1 | F29: =SUM(D29*E29) -> 0 | G29: 15.0 | H29: =SUM(F29*G29) -> 0.0 | I29: $154 | J29: =SUM(H29*I29) -> $0
A30: 1956.143(e)(1) | B30: Borrower accepts Restructuring
A31: RBS | D31: 3 | E31: 1 | F31: =SUM(D31*E31) -> 3 | G31: 2.0 | H31: =SUM(F31*G31) -> 6.0 | I31: $90 | J31: =SUM(H31*I31) -> $540
A32: CF | D32: 0 | E32: 1 | F32: =SUM(D32*E32) -> 0 | G32: 2.0 | H32: =SUM(F32*G32) -> 0.0 | I32: $90 | J32: =SUM(H32*I32) -> $0
A33: 1956.143(e)(2) | B33: Borrower Accepts Net Recovery Buyout
A34: RBS | D34: 0 | E34: 1 | F34: =SUM(D34*E34) -> 0 | G34: 2.0 | H34: =SUM(F34*G34) -> 0.0 | I34: $90 | J34: =SUM(H34*I34) -> $0
A35: CF | D35: 0 | E35: 1 | F35: =SUM(D35*E35) -> 0 | G35: 2.0 | H35: =SUM(F35*G35) -> 0.0 | I35: $90 | J35: =SUM(H35*I35) -> $0
A36: 1956.147 | B36: Debt Settlement under the Federal Claims Collection Act
A37: RBS | D37: 0 | E37: 1 | F37: =SUM(D37*E37) -> 0 | G37: 8.0 | H37: =SUM(F37*G37) -> 0.0 | I37: $90 | J37: =SUM(H37*I37) -> $0
A38: CF | D38: 1 | E38: 1 | F38: =SUM(D38*E38) -> 1 | G38: 8.0 | H38: =SUM(F38*G38) -> 8.0 | I38: $90 | J38: =SUM(H38*I38) -> $720
B39: REPORTING REQUIREMENTS - FORMS
A40: 1956.109 (f) | B40: Application for Settlement of Indebtedness | C40: RD 1956-1
A41: RBS | D41: 20 | E41: 1 | F41: =E41*D41 -> 20 | G41: 0.5 | H41: =F41*G41 -> 10.0 | I41: $90 | J41: =H41*I41 -> $900
A42: CF | D42: 9 | E42: 1 | F42: =E42*D42 -> 9 | G42: 0.5 | H42: 5.0 | I42: $154 | J42: =H42*I42 -> $770
A43: TOTALS | D43: =SUM(D6:D42) -> 116 | F43: =SUM(F6:F42) -> 163 | G43: =SUM(G6:G42) -> 305 | H43: =SUM(H6:H42) -> 1,005 | J43: =SUM(J6:J42) -> 68,290

Sheet Sheet2
